[Event "Che Chess Festival Blitz 2023"]
[Site "Thiruvananthapuram"]
[Date "2023.11.20"]
[Round "9.1"]
[White "Nihal Sarin"]
[Black "Praggnanandhaa R"]
[Result "0-1"]
[ECO "A48"]
[WhiteElo "2692"]
[BlackElo "2741"]
[Annotator "TA"]
[PlyCount "162"]
[EventDate "2023.11.20"]
[EventType "blitz"]
[EventCountry "IND"]
[SourceTitle "playchess.com"]
[Source "ChessBase"]
[SourceQuality "1"]
[TimeControl "180+2"]

{[%evp 10,162,7,10,19,14,20,18,22,20,33,-1,0,-7,0,0,0,-15,-13,-15,0,-16,-4,-10,0,0,47,0,0,0,0,0,30,8,9,10,39,12,0,2,7,10,6,0,0,-185,-189,-291,-290,-290,-290,-304,-299,-300,-297,-1565,-288,-1218,-217,-217,-217,-250,-224,-217,-217,-210,-210,-217,-210,-310,-265,-265,-265,-265,-252,-232,0,-244,-162,-162,-162,-160,-160,-162,-153,-136,-144,-153,-153,-153,-139,-153,-153,-153,-153,-153,-153,-153,-153,-153,-133,-153,-42,-126,-105,-153,-57,-138,-138,-153,-153,-153,-153,-153,-75,-57,0,0,0,-18,0,-24,-8,-76,-50,-63,-20,-92,-126,-98,-98,-141,-141,-144,-145,-145,-145,-145,-4,-35,0,0,0,0,0,0,0,-37,0,-15,0,0,0,-26,-5]} 1. b3 {[%emt 0:00:02]} Nf6 {[%emt 0:00:01]} 2. Bb2 {[%emt 0:00:01]} g6 {[%emt 0:00:01]} 3. Nf3 {[%emt 0:00:01]} Bg7 {[%emt 0:00:01]} 4. e3 {[%emt 0:00:00]} O-O {[%emt 0:00:05]} 5. d4 {[%emt 0:00:01]} d6 {[%emt 0:00:01]} 6. Be2 {[%emt 0:00:02]} Nc6 {[%emt 0:00:11] A48: 1 d4 Nf6 2 Nf3 g6: Torre, London and Colle Systems.} 7. O-O {[%emt 0:00:03]} Ne4 $5 {[%emt 0:00:11][%mdl 4] A promising side line.} 8. Nbd2 {[%emt 0:00:02]} Nxd2 {[%emt 0:00:01] The position is equal.} 9. Qxd2 {[%emt 0:00:03]} e5 {[%emt 0:00:02] [#]} 10. Rfd1 $146 {[%emt 0:00:04]} ({Predecessor:} 10. d5 Ne7 11. c4 h6 12. h3 f5 13. Nh2 f4 14. e4 g5 15. Bh5 Kh7 16. Rac1 {0-1 Koischwitz,W (1773)-Mai,A (1949) Berlin Lichtenberger op 9th 2010 (8)}) 10... e4 {[%emt 0:00:07]} 11. Ne1 {[%emt 0:00:01]} d5 {[%emt 0:00:19]} 12. c4 {[%emt 0:00:01]} Ne7 {[%emt 0:00:02]} 13. Ba3 {[%emt 0:00:02]} Re8 {[%emt 0:00:01]} 14. Rac1 {[%emt 0:00:01]} Be6 {[%emt 0:00:01]} 15. Nc2 {[%emt 0:00:02]} a5 {[%emt 0:00:08]} 16. Bb2 {[%emt 0:00:02]} Qd7 {[%emt 0:00:05]} 17. Na3 {[%emt 0:00:02]} a4 {[%emt 0:00:08]} (17... c6 $11) 18. Nb5 {[%emt 0:00:02]} (18. bxa4 $1 $14 Rec8 19. a5) 18... c6 $11 {[%emt 0:00:40]} 19. Nc3 {[%emt 0:00:01]} axb3 {[%emt 0:00:05]} 20. axb3 {[%emt 0:00:01]} Bg4 {[%emt 0:00:01]} 21. Na4 {[%emt 0:00:05] Nb6 would be deadly.} Bxe2 {[%emt 0:00:13]} 22. Qxe2 {[%emt 0:00:01]} Ra7 {[%emt 0:00:01]} 23. Ba3 {[%emt 0:00:13]} (23. Ra1 $5 {[%cal Ra4c5]} Qc7 24. Nc3 Rxa1 25. Rxa1 $14) 23... dxc4 {[%emt 0:00:04]} 24. Bc5 {[%emt 0:00:19]} Ra6 {[%emt 0:00:34]} 25. Bxe7 {[%emt 0:00:15]} Qxe7 {[%emt 0:00:02]} (25... Rxe7 $2 26. Nc5 (26. Rxc4 Qd6 $11) 26... Qd5 27. Nxa6 (27. Qxc4 Rb6 $11) (27. Rxc4 Ra8 $11) 27... bxa6 28. Qxc4 $18) 26. Nc5 {[%emt 0:00:02]} Ra7 {[%emt 0:00:27]} 27. Qxc4 $2 {[%emt 0:00:15]} (27. bxc4 $11 {and White has nothing to worry.} b6 28. Nb3) 27... b6 $19 {[%emt 0:00:05]} 28. Na6 {[%emt 0:00:02]} (28. Nxe4 {was necessary.} Qxe4 29. Qxc6) 28... Bf8 $1 {[%emt 0:00:11]} 29. b4 {[%emt 0:01:50]} Rea8 {[%emt 0:00:05]} 30. Qxc6 {[%emt 0:00:02] Black must now prevent Nc7.} Rxa6 {[%emt 0:00:01]} 31. b5 {[%emt 0:00:01]} Ra2 {[%emt 0:00:06]} 32. Qxb6 $2 {[%emt 0:00:01]} (32. Rf1) 32... Rb2 $2 {[%emt 0:00:01]} ({Not} 32... Qh4 $2 33. Rf1 $19) (32... Rxf2 {[%cal Oe7g5]} 33. Qc7 Raa2) 33. Rb1 $2 {[%emt 0:00:06]} (33. Qc6 Raa2 34. Rf1) 33... Rxb1 $2 {[%emt 0:00:03]} (33... Rxf2 {[%cal Oe7g5] ( -> ...Qg5!)} 34. Rf1 Rd2) 34. Rxb1 {[%emt 0:00:01] [#]} Qb4 $3 {[%emt 0:00:01][%cal Rb4b1][%mdl 576] Deflection, Back Rank} 35. Rf1 {[%emt 0:00:02]} (35. Rd1 Ra5) 35... Ra5 {[%emt 0:00:03]} 36. Qc6 {[%emt 0:00:01]} Qxb5 {[%emt 0:00:02]} 37. Qxe4 {[%emt 0:00:02]} Qb2 {[%emt 0:00:02]} 38. g3 {[%emt 0:00:02]} h5 {[%emt 0:00:01]} 39. h4 {[%emt 0:00:01]} (39. Qd3 {is a better defense.}) 39... Ra2 {[%emt 0:00:03]} 40. Kg2 {[%emt 0:00:03]} Qd2 {[%emt 0:00:02]} 41. Qf3 {[%emt 0:00:05]} Bh6 {[%emt 0:00:01]} 42. Kg1 {[%emt 0:00:01]} Bf8 $2 {[%emt 0:00:03]} (42... Ra5 $19 {And now ...Rf5 would win.} 43. Rd1 Qc2) 43. Rb1 $2 {[%emt 0:00:03]} (43. Kg2 $1 $11 {and White stays safe.}) 43... Rc2 {[%emt 0:00:02]} 44. Rb7 {[%emt 0:00:07] [#]} Qc1+ $1 {[%emt 0:00:01]} 45. Kg2 {[%emt 0:00:02]} Rc7 {[%emt 0:00:01]} 46. Rb8 {[%emt 0:00:01]} Qc6 {[%emt 0:00:03]} 47. Qxc6 {[%emt 0:00:03]} Rxc6 $17 {[%emt 0:00:00][%mdl 4096] Endgame KRB-KR} 48. Rb2 {[%emt 0:00:02]} Kg7 {[%emt 0:00:01]} 49. Ra2 {[%emt 0:00:01]} Kf6 {[%emt 0:00:02]} 50. Rb2 {[%emt 0:00:02]} Bd6 {[%emt 0:00:04]} 51. Ra2 {[%emt 0:00:01]} Rb6 {[%emt 0:00:00]} 52. Rc2 {[%emt 0:00:02]} Ke6 {[%emt 0:00:02]} 53. Kf3 {[%emt 0:00:02]} Kd5 {[%emt 0:00:01]} 54. Ra2 {[%emt 0:00:01]} Rb7 {[%emt 0:00:02]} 55. Ra5+ {[%emt 0:00:03]} Kc4 {[%emt 0:00:02]} (55... Kc6 $17 56. Ra6+ Kd7) 56. Ra6 {[%emt 0:00:01]} ({Better is} 56. g4 $1 $15) 56... Be7 {[%emt 0:00:01]} 57. Ra2 {[%emt 0:00:07]} (57. Ra5 $142) 57... Kc3 {[%emt 0:00:02]} (57... Kd5 $17 58. Ra1 Rb3) 58. Kg2 {[%emt 0:00:04]} (58. Ra6 $15) 58... Kd3 {[%emt 0:00:05]} 59. Kf1 {[%emt 0:00:03]} Rc7 {[%emt 0:00:03]} 60. Rb2 {[%emt 0:00:05]} Bd6 {[%emt 0:00:04]} 61. Rb3+ {[%emt 0:00:02]} Kc2 {[%emt 0:00:01]} (61... Ke4 $142 {...Kf3 is the strong threat.} 62. Kg2 Ra7) 62. Rb6 {[%emt 0:00:01]} Ba3 {[%emt 0:00:03]} (62... Rd7 $15) 63. Ke2 $11 {[%emt 0:00:02]} Bb2 {[%emt 0:00:03]} 64. Rb5 {[%emt 0:00:02]} Kc3 {[%emt 0:00:01]} 65. Rb6 {[%emt 0:00:02]} Ba3 {[%emt 0:00:02]} 66. Rb8 {[%emt 0:00:01]} (66. f4 $11) 66... Bd6 {[%emt 0:00:02]} 67. Rb6 {[%emt 0:00:02]} Bb4 {[%emt 0:00:01]} 68. Rb8 {[%emt 0:00:02]} (68. f4 $11) 68... Kc4 $17 {[%emt 0:00:01]} 69. Rb6 {[%emt 0:00:02]} Ba5 {[%emt 0:00:04]} 70. Rb8 {[%emt 0:00:01]} Ra7 {[%emt 0:00:02]} 71. Rc8+ {[%emt 0:00:02]} Bc7 {[%emt 0:00:01]} 72. Rf8 {[%emt 0:00:04] [#]} Bd6 $1 {[%emt 0:00:03]} 73. Rc8+ {[%emt 0:00:01]} Kb3 {[%emt 0:00:02]} (73... Kd5 $17 {Black wants to play ...Ke4.} 74. Rd8 Ke6 75. Re8+ Kd5) 74. Rc6 {[%emt 0:00:03]} Bb4 {[%emt 0:00:02]} 75. Kd3 {[%emt 0:00:03]} Be7 {[%emt 0:00:03]} 76. Rb6+ {[%emt 0:00:01]} Bb4 {[%emt 0:00:01]} 77. d5 {[%emt 0:00:02]} Ka4 {[%emt 0:00:03]} 78. Kd4 {[%emt 0:00:04]} Be1 {[%emt 0:00:01]} (78... Ka5 $5 {[%cal Ra5b6]} 79. Rf6 Bf8 $17) 79. Rf6 {[%emt 0:00:03]} Kb4 {[%emt 0:00:03] aiming for ...Bc3+.} 80. Rb6+ {[%emt 0:00:01]} Ka4 {[%emt 0:00:01]} 81. Rf6 {[%emt 0:00:01]} Kb3 {[%emt 0:00:01][%mdl 32768] Weighted Error Value: White=0.50/Black=0.30. Sensor Board Error (Ke4/e5)?} 0-1

[Event "Che Chess Festival Blitz 2023"]
[Site "Thiruvananthapuram"]
[Date "2023.11.20"]
[Round "10.1"]
[White "Praggnanandhaa R"]
[Black "Nihal Sarin"]
[Result "1-0"]
[ECO "E14"]
[WhiteElo "2741"]
[BlackElo "2692"]
[Annotator "TA"]
[PlyCount "75"]
[EventDate "2023.11.20"]
[EventType "blitz"]
[EventCountry "IND"]
[SourceTitle "playchess.com"]
[Source "ChessBase"]
[SourceQuality "1"]
[TimeControl "180+2"]

{[%evp 18,75,7,15,21,0,32,0,0,0,12,-7,22,-8,-15,-8,0,-13,-28,-12,-13,-16,-8,-58,-57,-54,-49,-106,-113,-95,-93,-129,-103,-102,-97,-125,-133,-145,-155,-147,-25,-26,-25,-25,-25,-25,-18,-22,94,14,18,16,65,55,763,754,748,736,881,863]} 1. d4 Nf6 {[%emt 0:03:04]} 2. c4 {[%emt 0:00:06]} e6 {[%emt 0:00:00]} 3. Nf3 {[%emt 0:00:04]} d5 {[%emt 0:00:00]} 4. e3 {[%emt 0:00:01]} b6 {[%emt 0:00:00]} 5. b3 {[%emt 0:00:03]} Bb7 {[%emt 0:00:00]} 6. Bb2 {[%emt 0:00:01]} Nbd7 {[%emt 0:00:00]} 7. Nbd2 {[%emt 0:00:01]} Bd6 {[%emt 0:00:00]} 8. Bd3 {[%emt 0:00:01]} O-O {[%emt 0:00:00]} 9. O-O {[%emt 0:00:02]} c5 {[%emt 0:00:00]} 10. Qe2 {[%emt 0:00:04] 10.cxd5 is the modern continuation.} Re8 {[%emt 0:00:00] [#] E14: Queen's Indian: Classical Variation (4 e3).} 11. Rfd1 $146 {[%emt 0:00:06]} ({Predecessor:} 11. Ne5 Ne4 12. cxd5 exd5 13. Nxd7 Qxd7 14. Nxe4 dxe4 15. Bc4 Qf5 16. Rad1 a6 17. a4 b5 18. dxc5 Qxc5 19. axb5 axb5 20. Bxb5 {1-0 Hoehfeld,M (1809)-Zschiesing,F (1945) Arco op 45th 2023 (5)}) 11... cxd4 {[%emt 0:00:00]} 12. exd4 {[%emt 0:00:01]} (12. Nxd4 {keeps more tension.} Qb8 13. cxd5 Bxh2+ 14. Kh1) 12... Rc8 {[%emt 0:00:00] The position is equal.} 13. Rac1 {[%emt 0:00:02]} Bf8 {[%emt 0:00:00]} 14. Ne5 {[%emt 0:00:03]} g6 {[%emt 0:00:00]} 15. Ndf3 {[%emt 0:00:04]} Bh6 {[%emt 0:00:00]} 16. Rc2 {[%emt 0:00:03]} Qe7 {[%emt 0:00:00]} 17. h4 {[%emt 0:00:10][%cal Oc4c5]} dxc4 {[%emt 0:00:00]} 18. bxc4 {[%emt 0:00:02]} Nxe5 {[%emt 0:00:00]} 19. Nxe5 {[%emt 0:00:06]} Nd7 {[%emt 0:00:00]} 20. Ng4 {[%emt 0:00:23]} (20. Nxd7 $11 Qxd7 21. Be4) 20... Bg7 $15 {[%emt 0:00:00]} 21. h5 {[%emt 0:00:02]} gxh5 {[%emt 0:00:00]} (21... f5 {simplifies} 22. hxg6 hxg6 23. Nh2 Bc6) 22. Ne5 {[%emt 0:00:44]} ({White should play} 22. Ne3 $15) 22... Nxe5 $17 {[%emt 0:00:00]} 23. dxe5 {[%emt 0:00:01]} Qg5 {[%emt 0:00:00][%csl Gb7][%cal Rg5g2] [#]} 24. Be4 {[%emt 0:00:01]} Bxe4 {[%emt 0:00:00]} 25. Qxe4 {[%emt 0:00:01]} Qg4 {[%emt 0:00:00]} 26. Qxg4 {[%emt 0:00:16]} hxg4 {[%emt 0:00:00]} 27. Rd7 {[%emt 0:00:02] [#]} Red8 $1 {[%emt 0:00:00]} 28. Rxa7 {[%emt 0:00:07]} Rc5 {[%emt 0:00:00]} (28... Rd1+ $17 29. Kh2 Rb1) 29. Rb7 $11 {[%emt 0:00:04]} Bxe5 {[%emt 0:00:00]} 30. Bxe5 {[%emt 0:00:01] aiming for Bf6.} Rxe5 {[%emt 0:00:00]} 31. Rxb6 {[%emt 0:00:01][%mdl 4096] Endgame KRR-KRR} Rd1+ {[%emt 0:00:00]} 32. Kh2 {[%emt 0:00:01]} Rd3 {[%emt 0:00:00]} (32... h5 $11 33. Rb5 (33. c5 $2 h4 $19) 33... Ree1) 33. Rb1 {[%emt 0:00:03]} (33. Rb5 $16 g3+ 34. fxg3) 33... Rh5+ {[%emt 0:00:29]} 34. Kg1 {[%emt 0:00:01] c5 would be deadly.} Rd7 {[%emt 0:00:01]} (34... Rd6 $11) 35. c5 $14 {[%emt 0:00:15][%cal Bc4c5,Bc5c6][%mdl 32] And now c6 would win.} Rhd5 $2 {[%emt 0:00:32][%mdl 8192]} (35... Rc7 $14) 36. c6 $18 {[%emt 0:00:18] White is clearly winning.} Rc7 {[%emt 0:00:02]} 37. Rb7 {[%emt 0:00:02]} g3 {[%emt 0:00:05]} 38. fxg3 {[%emt 0:00:03] Quite a comeback for White.   Weighted Error Value: White=0.22 (precise) /Black=0.21 (precise)} (38. Rxc7 $2 Rd1#) 1-0